bitfinex-derivatives/quotes_ETHF0:USTF0_20240818
["timestamp","ask_amount","ask_price","bid_price","bid_amount"]
[1723958913687,0.3451,2603.7,2603.5,4.19725891]
[1723958913688,3.90075291,2603.7,2603.5,4.19725891]
[1723958913952,0.369,2603.6,2603.2,1.3334]
[1723958914250,1.50857157,2603.5,2603.3,4.94323585]
[1723958914443,1.88387157,2603.5,2603.3,4.3387765]
[1723958916131,1.88387157,2603.5,2603.2,0.968]
[1723958916337,1.50857157,2603.4,2603.2,0.968]
[1723958916651,0.3429,2603.3,2603.2,0.968]
[1723958916945,0.3429,2603.3,2603.2,1.57260287]
[1723958917134,8.93641,2603.3,2603.2,0.60460287]
[1723958917335,8.3603,2603.3,2603.0,0.00346249]
[1723958917536,1.50869168,2603.1,2603.0,0.00346249]
[1723958917946,0.3541,2603.1,2603.0,0.00346249]
[1723958918136,0.93025,2603.1,2603.0,0.00346249]
[1723958918341,0.731,2603.1,2603.0,0.00346249]
[1723958918843,2.23900226,2603.1,2603.0,0.00346249]
[1723958919047,0.731,2603.1,2603.0,0.00346249]
[1723958919445,2.23869192,2603.1,2603.0,0.00346249]
[1723958922249,7.04829192,2603.1,2603.0,0.00346249]
[1723958922449,7.62444192,2603.1,2603.0,0.00346249]
[1723958925951,7.04829192,2603.1,2603.0,0.00346249]
[1723958926155,7.62444192,2603.1,2603.0,0.00346249]
[1723958927741,7.04829192,2603.1,2603.0,0.00346249]
[1723958928345,3.20669192,2603.1,2603.0,0.00346249]
[1723958928548,7.04829192,2603.1,2603.0,0.00346249]
[1723958928955,7.62444192,2603.1,2603.0,0.00346249]
[1723958930574,7.6238119,2603.1,2603.0,0.00346249]
[1723958931350,7.6238119,2603.1,2602.6,3.5847]
[1723958931351,0.57621,2602.9,2602.4,2.14934167]
[1723958931550,1.3473,2602.8,2602.4,2.2647]
[1723958931750,0.3793,2602.8,2602.7,0.968]
[1723958931955,0.00575738,2602.9,2602.7,0.968]
[1723958932160,0.36495738,2602.9,2602.7,0.968]
[1723958932456,0.36945465,2602.9,2602.7,0.97180749]
[1723958933057,2.84454212,2602.9,2602.7,0.00380749]
[1723958933248,1.33745465,2602.9,2602.7,0.00380749]
[1723958933444,2.84454212,2602.9,2602.7,0.00380749]
[1723958935459,3.42074212,2602.9,2602.7,0.00380749]
[1723958936658,2.84454212,2602.9,2602.7,0.00380749]
[1723958936858,1.87654212,2602.9,2602.7,0.00380749]
[1723958937158,2.45274212,2602.9,2602.7,0.00380749]
[1723958937656,1.87654212,2602.9,2602.7,0.00380749]
[1723958939859,0.36945465,2602.9,2602.7,0.00380749]
[1723958940153,0.968,2602.8,2602.7,0.00380749]
[1723958942849,5.38662,2602.8,2602.7,0.00380749]
[1723958943656,0.57629,2602.5,2602.3,3.2078]
[1723958943843,0.7556,2602.4,2602.3,3.2078]
[1723958944048,0.7556,2602.4,2602.1,1.00261099]
[1723958944245,1.54435,2602.2,2602.1,1.00261099]
[1723958944655,1.54435,2602.2,2602.1,1.00543528]
[1723958945755,0.968,2602.2,2602.1,1.00543528]
[1723958947244,1.3323,2602.3,2602.1,1.00543528]
[1723958947445,1.3323,2602.3,2602.1,1.37013528]
[1723958947651,8.59535,2602.2,2602.1,1.00543528]
[1723958948156,13.59535,2602.2,2602.1,1.00543528]
[1723958948354,13.59535,2602.2,2601.8,2.00522198]
[1723958948355,0.57642,2601.9,2601.8,2.00522198]
[1723958948565,0.57642,2601.9,2600.9,0.7329]
[1723958948566,3.2078,2601.9,2600.9,0.7329]
[1723958948854,0.968,2601.6,2601.2,0.968]
[1723958949048,0.968,2601.6,2601.3,0.37]
[1723958949281,0.968,2601.6,2601.3,0.37355314]
[1723958950159,7.49100185,2601.9,2601.3,1.34155314]
[1723958950359,0.968,2601.9,2601.5,0.968]
[1723958950758,0.968,2601.9,2601.6,12.32381703]
[1723958951355,0.3693,2602.1,2601.3,0.37355314]
[1723958951356,0.968,2601.7,2601.3,0.37355314]
[1723958951559,0.968,2601.6,2601.3,0.37355314]
[1723958951766,0.968,2601.6,2601.3,1.34155314]
[1723958951955,1.30634,2601.8,2601.3,0.37355314]
[1723958952460,1.30634,2601.8,2601.4,12.89194312]
[1723958952461,0.3611,2601.8,2601.4,12.89194312]
[1723958952655,0.3611,2601.8,2601.4,12.31543312]
[1723958953156,0.3611,2601.8,2601.4,12.89195312]
[1723958953865,0.3611,2601.8,2601.4,4.25267274]
[1723958955463,3.2078,2602.0,2601.5,8.0810189]
[1723958955664,3.2078,2602.0,2601.5,11.2888189]
[1723958955665,0.3764,2601.9,2601.5,11.2888189]
[1723958955960,0.3764,2601.9,2601.6,4.7517813]
[1723958956359,0.3764,2601.9,2601.7,0.3677]
[1723958957062,5.98579126,2602.3,2601.8,4.11748795]
[1723958957284,6.36219126,2602.3,2601.8,4.11748795]
[1723958957953,6.93852126,2602.3,2601.8,4.11748795]
[1723958958575,6.36219126,2602.3,2601.8,4.11748795]
[1723958958865,6.93852126,2602.3,2601.8,4.11748795]
[1723958959277,2.00690625,2602.7,2601.8,4.11748795]
[1723958959278,1.32503647,2602.9,2602.4,0.57631]
[1723958959466,0.01025465,2602.9,2602.7,0.57624]
[1723958959669,0.01025465,2602.9,2602.6,3.2078]
[1723958960164,0.01025465,2602.9,2602.7,4.11748795]
[1723958960569,0.01025465,2602.9,2602.6,12.21888419]
[1723958960770,0.01025465,2602.9,2602.6,7.9310917]
[1723958960968,0.01025465,2602.9,2602.5,0.36]
[1723958961264,0.01025465,2602.9,2602.6,11.97934386]
[1723958967964,0.01025465,2602.9,2602.6,12.55560386]
[1723958968371,0.01025465,2602.9,2602.6,11.97934386]
[1723958970275,0.01025465,2602.9,2602.8,3.2078]
[1723958976773,0.01025465,2602.9,2602.8,3.5762]
[1723958977478,0.01025465,2602.9,2602.8,3.2078]
[1723958979177,0.58645465,2602.9,2602.8,3.2078]
[1723958979377,0.58645465,2602.9,2601.9,3.9464]
[1723958979378,0.57623,2602.8,2601.9,3.9464]
[1723958979589,0.3666,2602.7,2602.1,0.57636]
[1723958979776,0.3666,2602.7,2602.2,12.22423703]
[1723958979976,0.3666,2602.7,2602.2,8.18059229]
[1723958980175,0.3666,2602.7,2602.1,0.95696]
[1723958980376,0.3666,2602.7,2602.3,4.04364474]
[1723958980578,0.3666,2602.7,2602.1,0.95696]
[1723958980579,0.3666,2602.7,2602.2,12.21136073]
[1723958980784,0.3666,2602.7,2602.2,8.16771599]
[1723958980981,0.3666,2602.7,2602.1,0.3806]
[1723958981279,0.3666,2602.7,2602.2,11.99439234]
[1723958981580,0.94285,2602.7,2602.2,11.99439234]
[1723958981782,0.94285,2602.7,2601.9,4.52281]
[1723958981978,3.5744,2602.7,2601.9,3.9464]
[1723958982171,0.57629,2602.5,2602.0,12.09283009]
[1723958982480,0.57627,2602.6,2602.0,12.09283009]
[1723958982784,0.3549,2602.4,2602.0,12.09283009]
[1723958983084,0.3615,2602.3,2602.0,12.09283009]
[1723958985979,0.3615,2602.3,2602.0,12.66922009]
[1723958986178,0.3615,2602.3,2602.0,7.95157196]
[1723958986780,3.5744,2602.7,2602.1,4.12756094]
[1723958986978,0.7059,2602.5,2602.1,4.12756094]
[1723958989291,0.7059,2602.5,2602.1,4.70393094]
[1723958989678,0.7059,2602.5,2602.2,0.57635]
[1723958989878,0.3559,2602.5,2602.3,0.3745]
[1723958992991,0.3787,2602.6,2602.3,0.3745]
[1723958993394,0.3787,2602.6,2602.4,0.3466]
[1723958993786,0.3787,2602.6,2602.3,0.3745]
[1723958994088,0.95496,2602.6,2602.3,0.3745]
[1723958995284,0.95496,2602.6,2601.9,3.78422]
[1723958995484,0.95496,2602.6,2602.1,0.3662]
[1723958997094,0.57631,2602.4,2602.1,0.3662]
[1723958997415,0.5763,2602.5,2602.1,0.3662]
[1723958997580,0.3716,2602.3,2602.1,0.3662]
[1723958998988,0.5763,2602.5,2602.1,0.3662]
[1723958999190,0.3716,2602.4,2602.1,0.3662]
[1723959001698,0.94791,2602.4,2602.0,8.07366765]
[1723959001895,1.54433,2602.3,2601.9,0.968]
[1723959002195,1.54433,2602.3,2601.7,1.6884]
[1723959002196,0.968,2602.1,2601.7,1.6884]
[1723959002387,0.3558,2602.0,2601.7,1.6884]
[1723959002694,0.709,2602.0,2601.7,1.6884]
[1723959003909,0.3602,2602.2,2601.8,0.57643]
[1723959004199,5.21470625,2602.4,2601.8,7.88937442]
[1723959004200,3.78411,2602.4,2601.8,7.88937442]
[1723959004499,0.3427,2602.3,2601.9,0.3761]
[1723959005492,0.3427,2602.3,2602.0,4.13300536]
[1723959005898,0.3427,2602.3,2602.1,0.3761]
[1723959015109,0.3427,2602.3,2602.0,4.13300536]
[1723959015403,0.3427,2602.3,2602.1,0.3653]
[1723959018991,0.3427,2602.3,2602.0,4.13300536]
[1723959019394,1.50848064,2602.2,2602.0,4.13300536]
[1723959019916,1.85118064,2602.3,2602.0,4.13300536]
[1723959020100,1.50848064,2602.2,2602.0,4.13300536]
[1723959020904,1.50848064,2602.2,2601.9,0.3674]
[1723959021102,2.23708064,2602.1,2601.7,0.3488]
[1723959021302,2.23708064,2602.1,2601.8,0.60522967]
[1723959021303,1.50848064,2602.0,2601.8,0.60522967]
[1723959021500,1.50848064,2602.0,2601.7,0.7162]
[1723959021694,0.3572,2601.9,2601.8,0.60523493]
[1723959023012,1.86568064,2601.9,2601.8,0.60523493]
[1723959023302,9.2004,2601.9,2601.3,0.00355314]
[1723959023507,1.51015077,2601.4,2601.3,0.00355314]
[1723959024130,3.09203436,2601.5,2601.3,0.00355314]
[1723959024307,1.51013881,2601.4,2601.3,0.00355314]
[1723959025504,5.35413881,2601.4,2601.3,0.00355314]
[1723959026202,3.844,2601.4,2601.3,0.00355314]
[1723959026398,5.35352416,2601.4,2601.3,0.00355314]
[1723959027608,1.50952416,2601.4,2601.3,0.00355314]
[1723959029604,3.16453416,2601.5,2601.3,0.00355314]
[1723959030505,2.58802416,2601.5,2601.3,0.00355314]
[1723959030694,3.16453416,2601.5,2601.3,0.00355314]
[1723959031994,2.58802416,2601.5,2601.3,0.00355314]
[1723959032399,1.0785,2601.5,2601.3,0.97255314]
[1723959032617,1.50952416,2601.7,2601.4,1.3142]
[1723959032910,0.347,2601.7,2601.6,0.969]
[1723959036504,1.85872416,2601.9,2601.6,8.83311464]
[1723959036707,0.3492,2601.9,2601.8,0.969]
[1723959036904,0.7253,2601.9,2601.8,0.969]
[1723959042108,1.50952416,2602.0,2601.8,0.969]
[1723959042317,0.3562,2602.1,2601.8,0.969]
[1723959042612,0.3562,2602.1,2601.9,0.3779]
[1723959043813,1.50952416,2602.2,2602.0,5.21837222]
[1723959044011,1.86892416,2602.2,2602.0,5.21837222]
[1723959044718,1.50952416,2602.1,2601.8,0.969]
[1723959045922,3.91828436,2602.2,2601.8,0.969]
[1723959045923,1.50952416,2602.0,2601.8,0.969]
[1723959046109,0.3581,2601.9,2601.8,0.969]
[1723959046616,0.3581,2601.9,2601.7,4.1768]
[1723959046810,0.3596,2601.8,2601.7,4.1768]
[1723959047111,0.7371,2601.8,2601.7,4.1768]
[1723959047709,0.7371,2601.8,2601.7,3.2078]
[1723959047904,0.7371,2601.8,2601.3,0.00355314]
[1723959047905,9.33354,2601.8,2601.3,0.00355314]
[1723959048105,0.969,2601.6,2601.3,0.00355314]
[1723959048415,2.47697622,2601.6,2601.3,0.00355314]
[1723959049417,1.50797622,2601.6,2601.4,0.969]
[1723959049917,5.35197622,2601.6,2601.4,0.969]
[1723959050512,1.50797622,2601.6,2601.4,0.969]
[1723959051911,2.47697622,2601.7,2601.4,0.969]
[1723959052410,1.50797622,2601.7,2601.4,0.969]
[1723959052607,1.50797622,2601.7,2601.4,1.3252]
[1723959053513,1.50797622,2601.7,2601.5,0.969]
[1723959053815,3.9449,2601.8,2601.5,0.969]
[1723959053816,2.24507622,2601.8,2601.5,0.969]
[1723959054417,2.24507622,2601.8,2601.5,1.3263]
[1723959054418,0.7371,2601.8,2601.5,1.3263]
[1723959054612,1.86757622,2601.8,2601.5,1.3263]
[1723959055013,1.50797622,2601.9,2601.7,0.969]
[1723959055316,4.63996748,2602.0,2601.8,5.69706351]
[1723959055515,1.50797622,2601.9,2601.8,4.35476351]
[1723959055720,1.50797622,2601.9,2601.7,0.969]
[1723959056013,0.5765,2601.6,2601.3,0.00355314]
[1723959056216,2.82768384,2601.5,2601.3,0.00355314]
[1723959056419,1.50818384,2601.4,2601.3,0.00355314]
[1723959056608,2.82768384,2601.5,2601.3,0.00355314]
[1723959057917,1.85868384,2601.5,2601.3,0.00355314]
[1723959058313,0.3505,2601.5,2601.3,0.00355314]
[1723959058614,1.85868384,2601.5,2601.3,0.00355314]
[1723959062616,1.50818384,2601.6,2601.3,0.00355314]
[1723959062816,2.01091179,2601.7,2601.3,0.00355314]
[1723959062817,1.50818384,2601.7,2601.3,0.58010314]
[1723959063025,1.50818384,2601.7,2601.4,0.7029]
[1723959063417,0.3468,2601.6,2601.4,0.7029]
[1723959064426,1.85498384,2601.6,2601.4,0.7029]
[1723959066221,1.50818384,2601.6,2601.4,0.7029]
[1723959068029,1.50818384,2601.6,2601.3,0.00355314]
[1723959068327,1.50818384,2601.6,2601.4,0.60509016]
[1723959068529,0.3466,2601.5,2601.3,0.00355314]
[1723959068725,0.3466,2601.5,2601.4,0.60505053]
[1723959068726,1.85478384,2601.5,2601.4,0.60505053]
[1723959069126,1.85478384,2601.5,2601.3,0.00355314]
[1723959069329,0.7153,2601.4,2601.3,0.00355314]
[1723959070223,2.72621179,2601.4,2601.3,0.00355314]
[1723959073820,0.3562,2601.4,2601.3,0.00355314]
[1723959079536,0.3562,2601.4,2601.3,0.35125314]
[1723959079837,1.86583448,2601.4,2601.3,0.35125314]
[1723959082049,5.1692,2601.4,2601.3,0.00355314]
[1723959082338,5.74573,2601.4,2601.3,0.00355314]
[1723959082924,7.75664179,2601.4,2601.3,0.00355314]
[1723959083126,5.74573,2601.4,2601.3,0.00355314]
[1723959083329,0.57658,2601.2,2600.9,3.2078]
[1723959083534,1.50970724,2601.0,2600.9,3.2078]
[1723959083943,2.21030724,2601.0,2600.9,3.2078]
[1723959084440,2.21494158,2601.0,2600.9,3.21072574]
[1723959084831,6.05974158,2601.0,2600.9,3.21072574]
[1723959085131,6.05974158,2601.0,2600.9,0.00292574]
[1723959087431,5.12665434,2601.0,2600.9,0.00292574]
[1723959087844,7.64357229,2601.0,2600.9,0.00292574]
[1723959088544,7.13866154,2601.0,2600.9,0.00292574]
[1723959088939,7.13852587,2601.0,2600.9,0.00292574]
[1723959089140,6.56190587,2601.0,2600.3,5.38]
[1723959089336,0.969,2600.6,2600.3,5.38]
[1723959089543,0.3785,2600.5,2600.2,1.89528]
[1723959089841,0.3785,2600.5,2600.3,8.80790797]
[1723959090042,0.3785,2600.5,2600.3,8.2021789]
[1723959090236,0.3785,2600.5,2600.3,8.20602904]
[1723959090540,0.3785,2600.5,2600.4,0.60569032]
[1723959090737,0.3785,2600.5,2600.3,8.20602904]
[1723959091134,0.3785,2600.5,2600.3,0.00385014]
[1723959091135,0.3517,2600.4,2600.3,0.00385014]
[1723959093643,1.50895227,2600.7,2600.3,5.39521014]
[1723959093946,5.68575227,2600.8,2600.4,1.54574]
[1723959094446,4.1768,2600.8,2600.4,1.54574]
[1723959095140,5.68575227,2600.8,2600.4,1.54574]
[1723959095346,5.68575227,2600.8,2600.5,0.3548]
[1723959095542,4.1768,2600.8,2600.5,0.3548]
[1723959096041,3.2078,2600.8,2600.3,0.36765014]
[1723959096236,0.969,2600.8,2600.5,0.3548]
[1723959096439,0.969,2600.8,2600.5,9.02783469]
[1723959096637,0.969,2600.8,2600.5,0.93152]
[1723959097245,0.969,2600.8,2600.5,0.3548]
[1723959098933,0.969,2600.8,2600.6,0.3449]
[1723959099848,0.969,2600.8,2600.4,4.75354]
[1723959100048,0.969,2600.8,2600.5,0.3449]
[1723959100348,0.969,2600.8,2600.5,8.38576226]
[1723959101048,1.54567,2600.8,2600.5,8.38576226]
[1723959102047,0.969,2600.6,2600.5,8.38576226]
[1723959102241,0.969,2600.6,2600.5,0.3449]
[1723959102442,1.54571,2600.6,2600.3,0.36765014]
[1723959102643,1.54571,2600.6,2600.3,0.00385014]
[1723959102644,1.89144,2600.5,2600.3,0.00385014]
[1723959103952,0.3457,2600.5,2600.3,0.00385014]
[1723959104339,0.969,2600.4,2600.3,0.00385014]
[1723959105553,0.3457,2600.5,2600.3,9.01984423]
[1723959105754,0.3627,2600.7,2600.3,9.01984423]
[1723959105755,1.3317,2600.7,2600.3,9.01984423]
[1723959107445,0.969,2600.7,2600.3,9.59661423]
[1723959107846,0.969,2600.7,2600.3,9.01984423]
[1723959110751,1.88005227,2600.8,2600.3,9.01984423]
[1723959110956,0.969,2600.7,2600.3,9.01984423]
[1723959111156,0.969,2600.7,2600.3,9.59661423]
[1723959111350,0.969,2600.7,2600.3,10.20250679]
[1723959111558,0.969,2600.7,2600.3,9.59661423]
[1723959112759,0.969,2600.7,2600.4,0.57675]
[1723959112964,0.969,2600.7,2600.5,0.3464]
[1723959113558,0.969,2600.7,2600.6,0.3492]
[1723959113952,0.969,2600.7,2600.6,0.7212]
[1723959114349,0.969,2600.8,2600.6,0.7212]
[1723959115251,0.969,2600.8,2600.6,1.29791]
[1723959115551,0.969,2600.8,2600.6,0.7212]
[1723959118157,2.48258661,2601.0,2600.6,2.26691]
[1723959118359,0.00463434,2601.0,2600.9,0.57664]
[1723959118557,0.00463434,2601.0,2600.9,0.969]
[1723959119155,0.00463434,2601.0,2600.9,1.54564]
[1723959119354,0.00463434,2601.0,2600.9,10.0995541]
[1723959120754,0.00463434,2601.0,2600.9,10.09947968]
[1723959121165,0.00463434,2601.0,2600.9,15.09947431]
[1723959122252,0.00463434,2601.0,2600.9,16.06605595]
[1723959122454,0.00463434,2601.0,2600.9,15.09947431]
[1723959123151,0.00463434,2601.0,2600.9,16.06605595]
[1723959123351,0.00463434,2601.0,2600.9,15.09947431]
[1723959123551,0.00463434,2601.0,2600.9,15.09952383]
[1723959123747,0.00463434,2601.0,2600.9,10.09952383]
[1723959123962,0.00463434,2601.0,2600.9,10.45632383]
[1723959124264,0.00463434,2601.0,2600.9,15.45632383]
[1723959124461,0.00463434,2601.0,2600.9,10.45632383]
[1723959127260,0.00463434,2601.0,2600.9,4.70908383]
[1723959127470,0.00463434,2601.0,2600.8,1.00241767]
[1723959127662,0.35313434,2601.0,2600.8,1.00241767]
[1723959128763,1.32213434,2601.0,2600.8,1.00241767]
[1723959129160,0.7219,2600.9,2600.8,1.00241767]
[1723959130873,0.7219,2600.9,2600.8,1.60818553]
[1723959131065,0.7219,2600.9,2600.8,1.00241767]
[1723959132970,2.23236655,2600.9,2600.6,3.5798]
[1723959133659,2.23236655,2600.9,2600.7,0.60583103]
[1723959133860,0.969,2600.8,2600.5,1.00241767]
[1723959134058,0.969,2600.8,2600.3,1.71506781]
[1723959134059,0.969,2600.6,2600.3,1.71506781]
[1723959134259,0.3428,2600.5,2600.4,0.60596418]
[1723959134461,0.3428,2600.5,2600.4,8.85871993]
[1723959134869,1.0474,2600.5,2600.4,8.85871993]
[1723959137575,2.55786655,2600.5,2600.4,8.25275575]
[1723959138468,7.37246655,2600.5,2600.3,0.00385014]
[1723959138661,3.52686655,2600.5,2600.3,0.00385014]
[1723959138863,1.51046655,2600.4,2600.3,0.00385014]
[1723959140167,1.51046655,2600.4,2600.3,0.60991454]
[1723959140370,1.51046655,2600.4,2600.3,0.00385014]
[1723959141972,2.55786655,2600.5,2600.3,0.60991579]
[1723959142170,2.55786655,2600.5,2600.3,0.00385014]
[1723959146774,3.52686655,2600.5,2600.3,0.00385014]
[1723959153769,1.51046655,2600.4,2600.3,0.00385014]
[1723959157070,3.52686655,2600.5,2600.3,0.00385014]
[1723959157978,1.51046655,2600.4,2600.3,0.00385014]
[1723959158571,3.52686655,2600.5,2600.3,0.00385014]
[1723959158974,1.51046655,2600.4,2600.3,0.00385014]
[1723959159686,3.52686655,2600.5,2600.3,0.00385014]
[1723959160883,3.17836655,2600.5,2600.3,0.00385014]
[1723959161686,0.969,2600.4,2600.3,0.00385014]
[1723959162578,2.47946655,2600.4,2600.3,0.00385014]
[1723959170480,6.32506655,2600.4,2600.3,0.00385014]
[1723959170682,0.5768,2600.2,2599.8,1.00241767]
[1723959170890,0.5768,2600.2,2599.7,1.50337648]
[1723959170891,2.23290851,2600.1,2599.9,0.60667435]
[1723959171090,2.23290851,2600.1,2599.6,3.2078]
[1723959171091,2.73634469,2600.1,2599.6,3.2078]
[1723959171383,1.51012455,2599.9,2599.7,0.60671805]
[1723959171594,1.51012455,2599.9,2599.7,0.00497056]
[1723959171595,0.353,2599.8,2599.7,0.00497056]
[1723959171893,0.353,2599.8,2599.7,0.61168506]
[1723959172298,0.353,2599.8,2599.7,0.00497056]
[1723959172490,0.353,2599.8,2599.7,0.61168435]
[1723959172687,1.322,2599.8,2599.7,0.61168435]
[1723959172996,2.83212455,2599.8,2599.7,0.00497056]
[1723959174096,1.322,2599.8,2599.7,0.61169164]
[1723959174287,0.969,2599.8,2599.7,0.61169164]
[1723959174487,0.969,2599.8,2599.7,0.98159164]
[1723959175290,0.969,2599.8,2599.7,0.37487056]
[1723959176694,0.969,2599.8,2599.7,0.98158225]
[1723959176888,0.969,2599.8,2599.7,0.00497056]
[1723959178600,0.969,2599.8,2599.7,0.61168479]
[1723959178897,0.969,2599.8,2599.7,0.00497056]
[1723959179298,2.47912455,2600.0,2599.7,4.45808375]
[1723959179488,5.44052455,2600.1,2599.8,1.18359319]
[1723959179794,1.51012455,2600.2,2600.1,0.57682]
[1723959180000,5.25711581,2600.5,2600.1,8.23687847]
[1723959180195,5.25711581,2600.5,2600.2,0.96815847]
[1723959180399,2.47912455,2600.5,2600.3,0.3446]
[1723959181604,1.51012455,2600.6,2600.4,3.2078]
[1723959181898,1.86882455,2600.7,2600.5,1.18328188]
[1723959182092,2.47912455,2600.8,2600.5,4.90515538]
[1723959182298,0.969,2600.8,2600.6,1.33693872]
[1723959182492,0.969,2600.8,2600.6,0.7304]
[1723959183101,0.969,2600.8,2600.7,0.60653442]
[1723959183296,0.969,2600.8,2600.6,0.7304]
[1723959185502,1.51012455,2600.9,2600.6,0.7304]
[1723959185695,0.969,2600.8,2600.6,0.7304]
[1723959189604,0.969,2600.7,2600.6,0.7304]
[1723959193098,1.51475889,2601.0,2600.6,9.61867892]
[1723959193299,0.00463434,2601.0,2600.7,1.54567]
[1723959193515,0.00463434,2601.0,2600.8,0.3585]
[1723959193716,0.00463434,2601.0,2600.8,4.51171928]
[1723959194014,0.00463434,2601.0,2600.9,1.54564]
[1723959194215,0.00463434,2601.0,2600.9,9.20471548]
[1723959194412,0.00463434,2601.0,2600.9,13.25417227]
[1723959195311,0.00575738,2601.3,2601.1,0.57659]
[1723959195515,0.00575738,2601.3,2601.2,9.29657]
[1723959195710,1.88282455,2601.9,2601.6,0.969]
[1723959196031,1.51012455,2602.0,2601.7,5.22224541]
[1723959196206,2.47912455,2602.1,2601.7,5.92144541]
[1723959196411,0.97247991,2602.1,2601.7,5.92611633]
[1723959197012,0.00347991,2602.1,2601.8,0.57644]
[1723959197214,0.00347991,2602.1,2601.8,12.00321607]
[1723959197415,0.00347991,2602.1,2601.9,4.04824046]
[1723959198519,0.37107991,2602.1,2601.9,4.04824046]
[1723959198723,1.34007991,2602.1,2601.9,4.04824046]
[1723959199620,1.69097991,2602.1,2601.9,4.04824046]
[1723959202119,3.8432,2602.0,2601.7,0.00467092]
[1723959202314,0.969,2601.9,2601.7,0.00467092]
[1723959203420,0.57644,2601.8,2601.7,0.00467092]
[1723959203813,3.8432,2601.8,2601.7,0.00467092]
[1723959204314,4.41964,2601.8,2601.7,0.00467092]
[1723959206423,4.41964,2601.8,2601.1,3.2078]
[1723959206424,0.5765,2601.6,2601.1,3.2078]
[1723959206627,0.969,2601.2,2601.1,3.2078]
[1723959207312,0.969,2601.2,2601.1,3.21103758]
[1723959211832,0.969,2601.3,2601.1,3.21103758]
[1723959215422,0.969,2601.2,2601.1,3.21103758]
[1723959215728,0.969,2601.2,2601.1,0.00323758]
[1723959219616,4.8138,2601.2,2601.1,0.00323758]
[1723959219832,5.39037,2601.2,2601.1,0.00323758]
[1723959221622,3.8448,2601.2,2601.1,0.00323758]
[1723959221824,4.8138,2601.2,2601.1,0.00323758]
[1723959230730,6.32392455,2601.2,2601.1,0.00323758]
[1723959232251,5.39037,2601.2,2601.1,0.00323758]
[1723959232829,6.89822482,2601.2,2601.1,0.00323758]
[1723959233434,7.40411469,2601.2,2601.1,0.00323758]
[1723959233632,5.39037,2601.2,2601.1,0.00323758]
[1723959236142,7.40411469,2601.2,2601.1,0.00323758]
[1723959236355,5.39037,2601.2,2601.1,0.00323758]
[1723959236640,0.57662,2601.0,2600.8,0.00576879]
[1723959236857,2.47708871,2601.0,2600.8,0.74136879]
[1723959237045,0.969,2601.0,2600.8,0.74136879]
[1723959237738,0.969,2601.0,2600.8,0.7441161]
[1723959238441,2.47708871,2601.1,2600.8,0.7441161]
[1723959240342,1.50808871,2601.1,2600.8,4.9209161]
[1723959240556,2.47708871,2601.2,2600.8,5.4975661]
[1723959241451,1.50808871,2601.2,2601.0,0.969]
[1723959241749,4.71588871,2601.3,2601.0,0.969]
[1723959241938,4.71588871,2601.3,2601.1,0.3613]
[1723959242140,4.71588871,2601.3,2601.2,0.7219]
[1723959242450,5.68488871,2601.3,2601.2,0.7219]
[1723959243136,4.1768,2601.3,2601.2,0.7219]
[1723959243344,0.969,2601.3,2601.2,0.7219]
[1723959243553,2.47708871,2601.3,2601.2,0.7219]
[1723959244742,2.47793798,2601.3,2601.2,0.7219]
[1723959244942,0.969,2601.3,2601.2,0.7219]
[1723959245343,1.5088955,2601.3,2601.2,0.7219]
[1723959246437,2.01374469,2601.3,2601.2,0.7219]
[1723959246751,2.98274469,2601.4,2601.2,0.7219]
[1723959248150,2.01374469,2601.3,2601.2,0.7219]
[1723959248342,2.98274469,2601.4,2601.2,0.7219]
[1723959249350,2.01374469,2601.3,2601.2,0.7219]
[1723959251255,2.01374469,2601.3,2601.2,1.32796742]
[1723959251550,3.48591795,2601.4,2601.2,1.32796742]
[1723959251741,3.48591795,2601.4,2601.2,0.7219]
[1723959252355,2.01511004,2601.3,2601.2,0.7219]
[1723959252550,3.48591795,2601.4,2601.2,1.32800541]
[1723959252854,3.48591795,2601.4,2601.2,0.7219]
[1723959252855,2.01511395,2601.3,2601.2,0.7219]
[1723959253156,3.48591795,2601.4,2601.2,1.32799364]
[1723959253352,3.48591795,2601.4,2601.2,0.7219]
[1723959254553,4.06245795,2601.4,2601.2,0.7219]
[1723959254752,3.48591795,2601.4,2601.2,0.7219]
[1723959255441,4.06244795,2601.4,2601.2,0.7219]
[1723959256063,7.32991795,2601.4,2600.9,1.00241767]
[1723959256358,2.98451197,2601.2,2601.0,1.67446562]
[1723959256555,2.98451197,2601.2,2601.1,0.60616562]
[1723959257360,2.98451197,2601.2,2601.1,0.60610911]
[1723959257851,3.35581197,2601.2,2601.1,0.60610911]
[1723959260551,1.3403,2601.2,2601.1,0.60610911]
[1723959261056,3.35615898,2601.2,2601.1,0.60610911]
[1723959261455,3.35615898,2601.2,2601.1,0.60609515]
[1723959261969,1.91687,2601.2,2601.1,0.60609515]
[1723959262155,2.29477,2601.2,2601.1,0.60609515]
[1723959266361,4.81168795,2601.2,2601.1,0.60609515]
[1723959266657,6.13957,2601.2,2600.8,1.01093377]
[1723959266861,3.56181941,2600.9,2600.8,0.0085161]
[1723959267054,1.54564,2600.9,2600.8,0.61486683]
[1723959267251,3.56193408,2600.9,2600.8,0.61486683]
[1723959267660,1.54564,2600.9,2600.8,0.61483199]
[1723959268357,3.56173141,2600.9,2600.8,0.61483199]
[1723959268563,1.54564,2600.9,2600.8,0.61483199]
[1723959269360,3.56169258,2600.9,2600.8,0.61483199]
[1723959269552,1.54564,2600.9,2600.8,0.61483199]
[1723959269754,1.54564,2600.9,2600.8,0.6148897]
[1723959270854,3.56155306,2600.9,2600.8,0.6148897]
[1723959272060,1.54564,2600.9,2600.8,0.6148897]
[1723959272365,6.52484658,2601.3,2600.8,0.6148897]
[1723959272366,1.08963256,2601.6,2601.5,0.57651]
[1723959272556,2.01582399,2601.8,2601.5,0.57651]
[1723959272557,1.08963256,2601.7,2601.6,0.57648]
[1723959272749,2.01582399,2601.9,2601.6,9.27194104]
[1723959272956,5.56632399,2602.0,2601.7,1.61278034]
[1723959273256,5.56632399,2602.0,2601.8,0.6063736]
[1723959273566,5.56632399,2602.0,2601.8,0.969]
[1723959274060,2.35852399,2602.0,2601.8,0.969]
[1723959274268,0.3427,2602.0,2601.8,0.969]
[1723959274857,2.0193039,2602.1,2601.8,0.969]